[Event "Cattolica Chess Festival 2022"]
[Site "Cattolica"]
[Date "2022.06.09"]
[Round "7.1"]
[White "Brunello, Sabino"]
[Black "Pantsulaia, Levan"]
[Result "1/2-1/2"]
[ECO "A67"]
[WhiteElo "2521"]
[BlackElo "2587"]
[Annotator "TA"]
[PlyCount "101"]
[EventDate "2022.06.04"]
[EventCountry "ITA"]
[SourceTitle "playchess.com"]
[Source "ChessBase"]
[SourceQuality "1"]
[TimeControl "5400+30"]

{[%evp 16,101,63,36,41,35,22,34,26,0,34,14,27,0,46,29,25,26,34,28,35,0,27,27,26,24,52,16,25,24,24,24,68,24,37,5,57,14,50,0,0,0,18,17,55,32,58,62,57,61,70,58,61,62,58,62,61,62,64,64,460,441,441,545,556,528,537,536,522,517,491,441,416,0,0,0,0,0,0,0,0,0,0,0,0,0,0,0]} 1. d4 {[%emt 0:30:02]} Nf6 {[%emt 0:30:21]} 2. c4 {[%emt 0:00:04]} c5 {[%emt 0:00:15]} 3. d5 {[%emt 0:00:08]} e6 {[%emt 0:01:32]} 4. Nc3 {[%emt 0:00:08]} exd5 {[%emt 0:00:07]} 5. cxd5 {[%emt 0:00:03]} d6 {[%emt 0:00:05]} 6. e4 {[%emt 0:00:50]} g6 {[%emt 0:00:05]} 7. f4 {[%emt 0:01:24]} Bg7 {[%emt 0:00:11]} 8. Bb5+ {[%emt 0:00:06]} Nfd7 {[%emt 0:00:07]} 9. a4 {[%emt 0:00:04] White is more active.} Na6 {[%emt 0:00:54] A67: Modern Benoni: Taimanov Variation.} 10. Nf3 {[%emt 0:00:55]} Nb4 {[%emt 0:00:08]} 11. O-O {[%emt 0:00:57]} a6 {[%emt 0:00:04] White is slightly better.} 12. Bc4 {[%emt 0:07:51]} Nb6 {[%emt 0:04:45] [#]} 13. Be2 $146 {[%emt 0:05:02][%cal Of4f5]} ({Predecessor:} 13. Bb3 O-O 14. a5 Nd7 15. Re1 b5 16. axb6 a5 17. b7 Bxb7 18. Bc4 Re8 19. Re2 {0-1 (27) Jordaan,W-Schott,D IECC email 2013}) 13... Bg4 {[%emt 0:00:34] Prevents f5.} 14. a5 {[%emt 0:06:03]} Bxf3 {[%emt 0:05:01]} (14... Nd7 $11 {feels stronger.}) 15. Bxf3 {[%emt 0:03:28]} Nd7 {[%emt 0:02:54]} 16. Be3 {[%emt 0:01:34][%cal Oe4e5]} O-O {[%emt 0:02:18]} 17. Qd2 {[%emt 0:03:04]} Rc8 {[%emt 0:02:07]} 18. Nd1 {[%emt 0:10:12]} f5 {[%emt 0:07:15]} 19. exf5 {[%emt 0:01:50]} gxf5 {[%emt 0:00:08]} 20. Bf2 {[%emt 0:00:20]} Qf6 {[%emt 0:05:17]} 21. Ra3 {[%emt 0:04:57]} b5 {[%emt 0:08:18]} 22. axb6 {[%emt 0:14:02]} Nxb6 {[%emt 0:00:08]} 23. Be2 {[%emt 0:00:11] Inhibits Nc4.} Ra8 {[%emt 0:02:40]} (23... N6xd5 $2 24. Bc4 $18) 24. Nc3 {[%emt 0:01:44]} Qf7 {[%emt 0:03:06]} 25. Rfa1 {[%emt 0:03:42][%cal Re2a6]} Qb7 {[%emt 0:00:17]} (25... Rab8 $11) 26. Na4 {[%emt 0:02:45]} (26. Na2 $5 {[%cal Ra2b4]} Qxd5 27. Rd1 $1 Qxd2 28. Rxd2 $16) 26... Nd7 {[%emt 0:09:00][%cal Bb6d7,Bd7f6,Bf6g4][%mdl 32]} (26... Qxd5 $2 27. Qc1 Qc6 28. Bf3 $18) (26... N6xd5 $2 27. Bf3 $18) 27. Rg3 {[%emt 0:01:39]} (27. Re3 $14) 27... Kh8 $11 {[%emt 0:03:28]} 28. Nc3 {[%emt 0:00:41]} Nf6 {[%emt 0:00:26]} 29. Re3 {[%emt 0:00:40] Against Ne4} Qf7 {[%emt 0:05:01]} 30. Re1 {[%emt 0:00:18][%cal Ba1e1,Be1e3,Be3e6][%mdl 32]} Rae8 {[%emt 0:02:25]} 31. Bc4 {[%emt 0:00:00]} Rxe3 {[%emt 0:00:00]} 32. Rxe3 {[%emt 0:00:00]} (32. Bxe3 Qg6 $11) (32. Qxe3 $2 Nc2 33. Qd2 Nxe1 34. Bxe1 Ne4 $19) 32... Ng4 {[%emt 0:00:00]} 33. Re6 {[%emt 0:00:00]} Qh5 {[%emt 0:00:00]} 34. Bg3 {[%emt 0:00:00] A strong pair of Bishops.} (34. Rxd6 $2 Qxh2+ 35. Kf1 Qh1+ 36. Ke2 Nxf2 $19) 34... Bd4+ {[%emt 0:00:00]} 35. Kh1 {[%emt 0:00:00]} Bf2 $1 {[%emt 0:00:00] Strongly threatening ...Bxg3.} 36. Ne2 {[%emt 0:00:00][%cal Bc3e2,Be2g3,Bg3e4,Be4f6][%mdl 32]} Bxg3 {[%emt 0:00:00][%csl Gg3,Gg4][%cal Rh5h2]} 37. Qc3+ {[%emt 0:00:00]} Rf6 $2 {[%emt 0:00:00][%mdl 8192] [#]} 38. h3 $1 $18 {[%emt 0:00:00]} (38. Qxg3 Rxe6 39. dxe6 d5 $16) 38... Bh4 {[%emt 0:00:00][%cal Bg3h4,Bh4g5,Bg5e3,Be3d4][%mdl 32] Hoping for ...Nf2+.} (38... Nf2+ $2 39. Kg1 Ne4 40. Rxe4 $18) 39. hxg4 {[%emt 0:00:00]} fxg4 {[%emt 0:00:07] White must now prevent ...Bf2+.} 40. Kg1 {[%emt 0:00:00] Against Bf2+} Kg7 {[%emt 0:03:19]} 41. Ng3 {[%emt 0:02:12]} Qg6 {[%emt 0:00:06]} 42. f5 {[%emt 0:01:17]} Qh6 {[%emt 0:01:43]} 43. Ne4 {[%emt 0:00:34][%mdl 64] Pin, Double Attack} Bg5 {[%emt 0:00:15] And now ...Be3+ would win.} 44. Qg3 {[%emt 0:02:52]} (44. Nxf6 $2 {too greedy.} Bxf6 45. Rxf6 (45. Rxd6 $2 Bxc3 46. Rxh6 Bd4+ 47. Kf1 Kxh6 $19) (45. Re7+ $2 Kf8 $19) 45... Qxf6 $19) (44. Nxd6 $1 $18 {Ne8+ is the strong threat.} Kg8 45. Qe1 Rxe6 46. Qxe6+ (46. dxe6 Be3+ 47. Kf1 Kf8 $15) 46... Qxe6 47. fxe6 (47. dxe6 Kg7 $16)) 44... Be3+ $11 {[%emt 0:02:55] The position is equal.} 45. Kf1 $1 {[%emt 0:00:01]} Bd4 {[%emt 0:00:12]} (45... Rxf5+ $2 46. Ke2 Qf4 {[#]} 47. Nxd6 $1 $18 (47. Qxf4 Bxf4 48. g3 Be5 $11)) 46. Qxg4+ {[%emt 0:00:51]} Kf8 {[%emt 0:00:41] ( -> ...Qc1+)} 47. Nxf6 {[%emt 0:00:55][%csl Gf6][%cal Rg4g8] Really sharp!} Qc1+ {[%emt 0:04:26]} 48. Re1 {[%emt 0:00:07][%csl Gf6][%cal Rg4g8]} Qxc4+ {[%emt 0:00:04]} 49. Re2 {[%emt 0:00:06][%csl Gf6][%cal Rg4g8]} Qc1+ {[%emt 0:00:09]} 50. Re1 {[%emt 0:00:03][%csl Gf6][%cal Rg4g8]} Qc4+ {[%emt 0:00:06]} 51. Re2 {[%emt 0:00:03] Black defended with fortune.  Weighted Error Value: White=0.19 (very precise) /Black=0.29 (precise)} 1/2-1/2

[Event "Cattolica Chess Festival 2022"]
[Site "Cattolica"]
[Date "2022.06.09"]
[Round "7.5"]
[White "Kjartansson, Gudmundur"]
[Black "Willow, Jonah B"]
[Result "0-1"]
[ECO "A13"]
[WhiteElo "2452"]
[BlackElo "2401"]
[Annotator "TA"]
[PlyCount "90"]
[EventDate "2022.06.04"]
[EventCountry "ITA"]
[SourceTitle "playchess.com"]
[Source "ChessBase"]
[SourceQuality "1"]
[TimeControl "5400+30"]

{[%evp 13,90,44,54,38,41,35,38,36,51,38,77,66,92,62,106,78,78,70,76,26,35,37,33,43,34,14,12,12,20,10,31,14,14,12,17,12,12,17,52,69,62,0,0,0,0,-19,-10,-5,-27,-31,0,0,0,0,0,0,0,0,0,0,0,0,0,0,0,-147,-174,-5406,-5406,-29991,-29992,-29995,-29996,-29996,-29997,-29997,-29998,-29998,-29999]} 1. Nf3 {[%emt 0:30:04]} Nf6 {[%emt 0:32:36]} 2. c4 {[%emt 0:00:34]} e6 {[%emt 0:00:15]} 3. g3 {[%emt 0:01:19]} d5 {[%emt 0:00:52]} 4. Bg2 {[%emt 0:00:34]} dxc4 {[%emt 0:04:44]} 5. Qa4+ {[%emt 0:00:12]} Bd7 {[%emt 0:01:53]} 6. Qxc4 {[%emt 0:00:15]} Bc6 {[%emt 0:00:17]} 7. O-O {[%emt 0:01:40]} Nbd7 {[%emt 0:01:37]} 8. b3 {[%emt 0:02:44] A13: English Opening: 1...e6.} Bd6 {[%emt 0:01:09]} 9. Bb2 {[%emt 0:00:28]} O-O {[%emt 0:01:05]} 10. Qc2 {[%emt 0:09:13] White is slightly better.} Qe7 {[%emt 0:02:45]} 11. d3 {[%emt 0:03:07] [#]} Rfd8 $146 {[%emt 0:02:27]} ({Predecessor:} 11... e5 12. Nbd2 a5 13. a3 Nb6 14. e4 a4 15. b4 Bb5 16. Nc4 Nfd7 17. Nfd2 c5 18. bxc5 Bxc5 19. Kh1 Rfd8 20. f4 Rac8 {½-½ (20) Pierro,S (1585)-Basson,H (1676) IECC email 2011}) 12. e4 {[%emt 0:02:09]} e5 {[%emt 0:05:15]} 13. Nbd2 {[%emt 0:01:40]} Ba3 {[%emt 0:04:24]} 14. Nc4 {[%emt 0:02:31]} Bxb2 {[%emt 0:00:14]} 15. Qxb2 {[%emt 0:00:04][%cal Rf3e5]} Re8 {[%emt 0:00:52]} 16. Rfe1 {[%emt 0:04:44]} (16. a4 $16) 16... Bb5 $11 {[%emt 0:04:44]} 17. d4 {[%emt 0:01:40][%cal Rf3e5]} Bxc4 {[%emt 0:02:56]} 18. bxc4 {[%emt 0:00:05]} Rab8 {[%emt 0:00:14]} 19. c5 {[%emt 0:06:09]} c6 {[%emt 0:04:49]} 20. Rac1 {[%emt 0:02:21]} exd4 {[%emt 0:06:24]} 21. e5 {[%emt 0:00:58]} Ng4 {[%emt 0:00:54][%cal Rg4e5]} 22. e6 {[%emt 0:08:35]} fxe6 {[%emt 0:00:50][%cal Bf7e6,Be6e5,Be5f4][%mdl 32]} 23. Qxd4 {[%emt 0:03:36]} Ngf6 {[%emt 0:01:58]} 24. Ng5 {[%emt 0:01:04][%cal Bf3g5,Bg5e4,Be4d6][%mdl 1056] White has compensation.} Nf8 {[%emt 0:00:37]} 25. Bh3 {[%emt 0:01:01]} e5 {[%emt 0:02:29]} 26. Qc4+ {[%emt 0:02:03]} Nd5 {[%emt 0:17:10]} 27. f4 {[%emt 0:00:32]} (27. Ne4 $1 $14) 27... Qd8 {[%emt 0:00:00]} 28. Bg2 {[%emt 0:08:32]} h6 {[%emt 0:00:00]} 29. Ne4 {[%emt 0:05:04] Threatens to win with Nd6.} exf4 {[%emt 0:00:00]} 30. Nd6 {[%emt 0:00:39]} Rxe1+ {[%emt 0:00:00]} 31. Rxe1 {[%emt 0:00:04]} Qg5 {[%emt 0:00:37]} 32. gxf4 {[%emt 0:00:36]} Qh5 {[%emt 0:01:29]} 33. f5 {[%emt 0:01:44] Against Ng6} Qg5 {[%emt 0:00:00]} 34. Kh1 {[%emt 0:00:00]} Qd2 {[%emt 0:00:00]} 35. Rg1 {[%emt 0:00:00][%cal Of5f6] And now f6! would win.} Nd7 {[%emt 0:00:00]} 36. Qg4 {[%emt 0:00:00][%cal Of5f6] aiming for f6!} N7f6 {[%emt 0:00:00]} 37. Qg6 {[%emt 0:00:00]} Nf4 {[%emt 0:00:00][%cal Bd5f4,Bf4h3,Bh3f2,Bf2e4][%mdl 32] Pair of Knights!} 38. Qf7+ $40 {[%emt 0:00:00][%mdl 128] White mounts an attack.} Kh8 {[%emt 0:00:00] Strongly threatening ...Ng4.} 39. Bxc6 {[%emt 0:00:00] [#]} Rg8 $1 $17 {[%emt 0:00:00]} 40. Bxb7 $2 {[%emt 0:00:00]} (40. Bf3 Nh3 41. Rf1 Nf2+ 42. Kg1) 40... Nh3 $19 {[%emt 0:00:00] ( -> ...Nf2+)} 41. Nc4 {[%emt 0:00:00]} Qe2 {[%emt 0:00:00] Black mates.} 42. Qe6 {[%emt 0:00:00]} Nf2+ {[%emt 0:00:00]} 43. Kg2 {[%emt 0:00:00]} N2e4+ {[%emt 0:00:00][%mdl 64] [#] Discovered Attack} 44. Kh3 {[%emt 0:00:00]} Qf3+ {[%emt 0:00:00]} 45. Rg3 {[%emt 0:00:00]} Nf2+ {[%emt 0:00:00] Weighted Error Value: White=0.45/Black=0.05 (flawless)} 0-1

[Event "Cattolica Chess Festival 2022"]
[Site "Cattolica"]
[Date "2022.06.09"]
[Round "7.6"]
[White "Souhardo Basak"]
[Black "Korneev, Oleg"]
[Result "1/2-1/2"]
[ECO "B43"]
[WhiteElo "2357"]
[BlackElo "2521"]
[Annotator "TA"]
[PlyCount "32"]
[EventDate "2022.06.04"]
[EventCountry "ITA"]
[SourceTitle "playchess.com"]
[Source "ChessBase"]
[SourceQuality "1"]
[TimeControl "5400+30"]

{[%evp 18,32,27,5,15,0,15,0,27,20,20,18,52,-2,4,16,76]} 1. e4 {[%emt 0:30:03]} c5 {[%emt 0:39:33]} 2. Nf3 {[%emt 0:00:16]} e6 {[%emt 0:00:12]} 3. d4 {[%emt 0:00:06]} cxd4 {[%emt 0:00:03]} 4. Nxd4 {[%emt 0:00:04]} a6 {[%emt 0:00:04]} 5. Nc3 {[%emt 0:00:06]} Qc7 {[%emt 0:00:04]} 6. Bd3 {[%emt 0:00:05]} Nc6 {[%emt 0:02:14]} 7. Nxc6 {[%emt 0:00:20]} dxc6 {[%emt 0:02:02]} 8. O-O {[%emt 0:00:15]} Nf6 {[%emt 0:00:02] has lost popularity (8...e5).} 9. f4 {[%emt 0:00:52]} e5 {[%emt 0:00:16]} 10. f5 {[%emt 0:00:46]} b5 {[%emt 0:01:14] B43: Sicilian: Kan Variation: 5 Nc3.} 11. Qf3 {[%emt 0:06:11]} Bb7 {[%emt 0:01:03]} 12. a4 {[%emt 0:05:48] [#]} Rd8 $146 {[%emt 0:06:05]} ({Predecessor:} 12... c5 13. axb5 c4 14. Be2 axb5 15. Rxa8+ Bxa8 16. Kh1 b4 17. Nd5 Bxd5 18. exd5 e4 {1-0 (36) Matinian,N (2481)-Korneev,O (2637) Khanty-Mansiysk 2013}) 13. Kh1 {[%emt 0:04:33]} Be7 {[%emt 0:12:17]} 14. Be3 {[%emt 0:03:02]} O-O {[%emt 0:00:46]} 15. axb5 {[%emt 0:13:22]} (15. g4 $1 $14) 15... axb5 {[%emt 0:09:08]} 16. g4 {[%emt 0:11:22]} h6 {[%emt 0:04:34] Weighted Error Value: White=0.20 (precise) /Black=0.13 (very precise)} (16... Nd7 $11) 1/2-1/2

[Event "Cattolica Chess Festival 2022"]
[Site "Cattolica"]
[Date "2022.06.09"]
[Round "7.7"]
[White "Padmini, Rout"]
[Black "Milikow, Yoav"]
[Result "1-0"]
[ECO "D02"]
[WhiteElo "2348"]
[BlackElo "2410"]
[Annotator "TA"]
[PlyCount "79"]
[EventDate "2022.06.04"]
[EventCountry "ITA"]
[SourceTitle "playchess.com"]
[Source "ChessBase"]
[SourceQuality "1"]
[TimeControl "5400+30"]

{[%evp 10,79,18,0,7,4,5,0,21,7,13,7,14,8,7,0,41,39,91,8,2,13,22,0,0,0,3,-8,4,6,21,12,16,10,22,14,14,14,13,12,16,21,32,18,41,47,85,47,149,136,123,106,195,220,416,316,512,378,448,431,722,547,2268,2222,5247,5243,5243,2093,1467,1443,6295,5289]} 1. Nf3 {[%emt 0:30:06]} d5 {[%emt 0:30:10]} 2. g3 {[%emt 0:00:10]} g6 {[%emt 0:00:13]} 3. Bg2 {[%emt 0:00:07]} Bg7 {[%emt 0:00:06]} 4. d4 {[%emt 0:00:15]} Nf6 {[%emt 0:00:14]} 5. O-O {[%emt 0:00:08]} O-O {[%emt 0:00:15]} 6. c3 {[%emt 0:00:14]} a5 {[%emt 0:01:25] D02: 1 d4 d5 2 Nf3 sidelines, including 2...Nf6 3 g3 and 2...Nf6 3 Bf4.} 7. Re1 {[%emt 0:02:13]} a4 {[%emt 0:03:05] [#]} 8. Na3 $146 {[%emt 0:03:58]} ({Predecessor:} 8. a3 Bf5 9. Nbd2 c6 10. Ne5 Nbd7 11. Nxd7 Qxd7 12. e4 dxe4 13. Nxe4 Nxe4 14. Bxe4 {0-1 (53) Martynov,A (2019)-Rakotomaharo,F (2391) Riga 2021}) 8... Ne4 {[%emt 0:08:01] The position is equal.} 9. Nd2 {[%emt 0:02:53]} (9. Ng5 {keeps more tension.} f5 10. Nxe4 fxe4 11. f3) 9... Nxd2 {[%emt 0:02:11]} 10. Bxd2 {[%emt 0:00:16]} Bf5 {[%emt 0:01:03]} 11. f3 {[%emt 0:05:39]} Qd7 {[%emt 0:02:15]} 12. Qc1 {[%emt 0:04:34]} Na6 {[%emt 0:04:23]} 13. Bh6 {[%emt 0:01:21]} c5 {[%emt 0:01:12]} ({Black should try} 13... c6 $14) 14. Rd1 {[%emt 0:04:13]} (14. Bxg7 $16 Kxg7 15. e4 dxe4 16. fxe4) 14... Bxh6 $11 {[%emt 0:03:37]} 15. Qxh6 {[%emt 0:00:06]} cxd4 {[%emt 0:00:32]} 16. g4 {[%emt 0:05:53]} (16. Rxd4 $5 {[%cal Re2e4]} e5 17. Rd2 $11 (17. Rh4 f6 $11)) 16... Be6 {[%emt 0:00:14]} 17. Rxd4 {[%emt 0:00:17]} Qc7 {[%emt 0:03:04]} 18. Rad1 {[%emt 0:02:01]} Nb8 {[%emt 0:03:56]} 19. g5 {[%emt 0:14:42] [#] White threatens Rh4 and mate.} f5 {[%emt 0:02:54]} 20. gxf6 $1 {[%emt 0:00:16]} exf6 {[%emt 0:00:53]} 21. Qe3 {[%emt 0:02:58]} Bf7 {[%emt 0:01:17]} 22. f4 {[%emt 0:03:39]} Nc6 {[%emt 0:04:03]} 23. R4d2 {[%emt 0:00:17]} Rfe8 {[%emt 0:01:22]} 24. Qf2 {[%emt 0:00:10]} Ne7 {[%emt 0:00:46]} 25. Nb5 {[%emt 0:03:38][%cal Ba3b5,Bb5d4,Bd4c2,Bc2e3][%mdl 32]} Qc6 {[%emt 0:02:01]} 26. Nd4 $36 {[%emt 0:01:11][%mdl 2048] White has some pressure.} Qc4 {[%emt 0:00:36]} 27. a3 {[%emt 0:00:21]} Rad8 {[%emt 0:01:28]} 28. Nc2 {[%emt 0:04:09] White is more active.} g5 {[%emt 0:04:59]} (28... Qc8 $14) 29. fxg5 $16 {[%emt 0:01:30]} fxg5 {[%emt 0:00:08]} 30. Ne3 {[%emt 0:07:35]} Qa6 {[%emt 0:03:47]} (30... Qf4 $16 {was worth a try.}) 31. Ng4 $18 {[%emt 0:00:00]} ({Resist} 31. Bxd5 $6 Nxd5 32. Nxd5 Bxd5 $16) ({Don't take} 31. Nxd5 $6 Nxd5 32. Bxd5 Bxd5 $16) (31. Rf1 Rf8) 31... Rd6 $2 {[%emt 0:00:00]} (31... Rf8 32. Qe3 Qd6 33. Qxg5+ Kh8) 32. e4 {[%emt 0:00:00][%cal Be2e4,Be4e5,Be5d6,Bd6e7][%mdl 32]} Bh5 $2 {[%emt 0:00:00]} (32... Rf8 {was called for.} 33. Rf1 (33. exd5 Bh5 $11) 33... dxe4) 33. e5 {[%emt 0:00:00]} Bxg4 {[%emt 0:00:00]} 34. exd6 {[%emt 0:00:00] White is clearly winning.} Bxd1 {[%emt 0:00:00]} (34... Qxd6 $142 35. Rf1 Bh5) 35. dxe7 {[%emt 0:00:00]} Bb3 {[%emt 0:00:00]} 36. Rxd5 {[%emt 0:00:00] [#] Threatening mate with Rd8.} Qg6 {[%emt 0:00:00]} 37. Rd8 {[%emt 0:00:00] Intending Qf8+ and mate.} Qf7 {[%emt 0:00:00] Prevents Qf8+.} 38. Qe3 {[%emt 0:00:00]} (38. Qc5 $142 Kg7 39. Qxg5+ Qg6 40. Qxg6+ Kxg6 41. Rxe8) 38... h6 {[%emt 0:00:00]} 39. Bxb7 {[%emt 0:00:00] White wants to mate with Bc6.} Bc4 {[%emt 0:00:00]} 40. Rxe8+ {[%emt 0:00:00] Weighted Error Value: White=0.24 (precise) /Black=0.35} 1-0

[Event "Cattolica Chess Festival 2022"]
[Site "Cattolica"]
[Date "2022.06.09"]
[Round "7.8"]
[White "Trost, Edvin"]
[Black "Milikow, Elie"]
[Result "1/2-1/2"]
[ECO "E04"]
[WhiteElo "2366"]
[BlackElo "2428"]
[Annotator "TA"]
[PlyCount "53"]
[EventDate "2022.06.04"]
[EventCountry "ITA"]
[SourceTitle "playchess.com"]
[Source "ChessBase"]
[SourceQuality "1"]
[TimeControl "5400+30"]

{[%evp 11,53,24,24,24,24,22,39,34,45,31,66,68,91,71,72,83,91,87,81,81,86,16,4,10,10,0,0,0,0,0,0,0,0,0,0,0,0,0,0,0,0,0,0,0]} 1. d4 {[%emt 0:31:31]} Nf6 {[%emt 0:30:09]} 2. c4 {[%emt 0:01:23]} e6 {[%emt 0:00:10]} 3. Nf3 {[%emt 0:00:44]} d5 {[%emt 0:00:22]} 4. g3 {[%emt 0:00:36]} dxc4 {[%emt 0:01:33]} 5. Bg2 {[%emt 0:00:35]} Bb4+ {[%emt 0:01:49]} 6. Bd2 {[%emt 0:00:24]} a5 {[%emt 0:00:37]} 7. Qc2 {[%emt 0:00:54] E04: Open Catalan: 5 Nf3.} Bxd2+ {[%emt 0:05:05]} 8. Qxd2 {[%emt 0:00:20]} O-O {[%emt 0:12:46][%cal Bh8f8,Bf8d8,Bd8d2][%mdl 32]} 9. Na3 {[%emt 0:01:22] [#] White is slightly better.} Qe7 $146 {[%emt 0:04:36]} ({Predecessor:} 9... b6 10. Ne5 Nd5 11. Naxc4 Bb7 12. O-O f6 13. Nd3 Nc6 14. e3 Qe7 15. Rac1 Rad8 {1-0 (38) Lazavik,D (2504)-Babazada,K (2431) Chess.com INT 2022}) 10. Nxc4 {[%emt 0:05:19]} Nc6 {[%emt 0:03:08]} 11. O-O {[%emt 0:02:34]} Rd8 {[%emt 0:00:28][%cal Oe6e5]} 12. Rfd1 {[%emt 0:00:24]} Ra6 {[%emt 0:12:20][%cal Ba8a6,Ba6d6,Bd6d1][%mdl 32]} 13. Rac1 {[%emt 0:05:54]} e5 {[%emt 0:07:24]} 14. Ncxe5 {[%emt 0:12:36]} Nxd4 {[%emt 0:00:37][%mdl 64] [#] Remove Defender} 15. Nxd4 {[%emt 0:00:05]} Qxe5 {[%emt 0:00:17]} 16. Nc6 {[%emt 0:03:59]} Rxd2 $11 {[%emt 0:00:09] The position is equal.} 17. Nxe5 {[%emt 0:00:04]} Rad6 {[%emt 0:01:09]} 18. Re1 {[%emt 0:00:18] [#] Hoping for Nc4.} Be6 {[%emt 0:01:45]} 19. Rxc7 {[%emt 0:03:55]} Rxe2 {[%emt 0:01:12]} 20. Rxe2 {[%emt 0:00:33]} Rd1+ {[%emt 0:00:11]} 21. Bf1 {[%emt 0:00:01]} Bh3 $1 {[%emt 0:00:12][%csl Gh3][%cal Rd1f1]} 22. Rc8+ $1 {[%emt 0:00:03]} Bxc8 {[%emt 0:00:08]} 23. Kg2 {[%emt 0:01:48] Inhibits Bh3+.} h5 {[%emt 0:05:45]} 24. f3 {[%emt 0:01:15]} Be6 {[%emt 0:01:45]} 25. a3 {[%emt 0:00:07]} Nd5 {[%emt 0:06:09]} 26. Nc4 {[%emt 0:00:11] Prevents Nb6.} b6 {[%emt 0:01:22]} (26... Nf4+ $2 27. gxf4 Rc1 28. Nxa5 $18) 27. Kf2 {[%emt 0:02:41] Weighted Error Value: White=0.09 (flawless) /Black=0.05 (flawless)} 1/2-1/2

[Event "Cattolica Chess Festival 2022"]
[Site "Cattolica"]
[Date "2022.06.09"]
[Round "7.9"]
[White "Buksa, Nataliya"]
[Black "Ojas Kulkarni"]
[Result "1/2-1/2"]
[ECO "C70"]
[WhiteElo "2406"]
[BlackElo "2235"]
[Annotator "TA"]
[PlyCount "85"]
[EventDate "2022.06.04"]
[EventCountry "ITA"]
[SourceTitle "playchess.com"]
[Source "ChessBase"]
[SourceQuality "1"]
[TimeControl "5400+30"]

{[%evp 10,85,32,30,36,28,33,26,40,21,22,22,27,6,14,5,5,4,30,10,22,8,35,30,39,24,22,0,13,13,15,15,56,0,0,0,0,0,0,0,0,0,0,0,15,0,0,0,0,0,6,0,0,0,0,0,0,0,0,0,0,0,0,0,0,0,11,0,0,0,0,0,0,0,0,0,0,0]} 1. e4 {[%emt 0:32:01]} e5 {[%emt 0:30:17]} 2. Nf3 {[%emt 0:00:06]} Nc6 {[%emt 0:00:05]} 3. Bb5 {[%emt 0:00:06]} a6 {[%emt 0:00:07]} 4. Ba4 {[%emt 0:00:03]} Bc5 {[%emt 0:00:08]} 5. O-O {[%emt 0:00:04]} d6 {[%emt 0:00:06]} 6. c3 {[%emt 0:00:04]} Bd7 {[%emt 0:00:09] C70: Ruy Lopez: 3...a6 4 Ba4, Norwegian and Delayed Schliemann.} 7. d4 {[%emt 0:00:14]} Ba7 $1 {[%emt 0:00:07][%mdl 4] now scores much better than the old 7...exd4.} 8. Be3 {[%emt 0:00:20]} Nge7 {[%emt 0:00:09][%cal Bg8e7,Be7g6,Bg6f4][%mdl 32] White has an edge.} 9. d5 {[%emt 0:07:37]} Nb8 {[%emt 0:00:07]} (9... Bxe3 $2 10. dxc6 (10. fxe3 Nb8 $11) 10... Bxf2+ 11. Rxf2 $18) 10. Bxa7 {[%emt 0:00:21]} Rxa7 {[%emt 0:00:02] [#]} 11. Bxd7+ $146 {[%emt 0:00:32]} ({Predecessor:} 11. c4 b5 12. Bb3 Ng6 13. Nc3 O-O 14. Ne1 b4 15. Ne2 c5 16. dxc6 Bxc6 17. f3 {½-½ (46) Mammadzada,G (2460)-Khademalsharieh,S (2494) Krasnaya Polyana 2021}) 11... Nxd7 {[%emt 0:00:09]} 12. c4 {[%emt 0:00:02]} O-O {[%emt 0:00:09]} 13. Nc3 {[%emt 0:00:02]} Ng6 {[%emt 0:00:56]} 14. Qc2 {[%emt 0:05:36]} Ra8 {[%emt 0:02:51]} 15. b4 {[%emt 0:03:42]} Nf4 {[%emt 0:08:38]} 16. g3 {[%emt 0:07:32]} Nh5 {[%emt 0:00:08]} 17. Nh4 {[%emt 0:06:37]} g6 {[%emt 0:00:50]} 18. Ne2 {[%emt 0:01:27]} b6 {[%emt 0:01:05]} 19. Rae1 {[%emt 0:08:04]} a5 {[%emt 0:07:54]} (19... Nf4 {seems wilder.} 20. Nc3 a5 21. a3 Qg5) 20. a3 {[%emt 0:00:17]} Ng7 {[%emt 0:00:14]} (20... Nf4 {keeps more tension.} 21. Nc3 Qg5 22. Kh1 Rfc8) 21. Ng2 {[%emt 0:00:03]} (21. Nc3 $14) 21... f5 $11 {[%emt 0:03:28] The position is equal.} 22. f3 {[%emt 0:01:16]} fxe4 {[%emt 0:19:20]} 23. fxe4 {[%emt 0:00:32]} Rxf1+ {[%emt 0:04:43]} 24. Rxf1 {[%emt 0:00:03]} axb4 {[%emt 0:00:03]} 25. axb4 {[%emt 0:00:03]} Qg5 {[%emt 0:04:57]} 26. Nc3 {[%emt 0:04:54]} Ne8 {[%emt 0:01:36]} 27. Nb5 {[%emt 0:05:12]} Kg7 {[%emt 0:01:29]} 28. Qf2 {[%emt 0:00:39]} Qf6 {[%emt 0:01:09] Prevents Qf7+.} 29. Qb2 {[%emt 0:05:30]} Qg5 {[%emt 0:00:52]} 30. Nf4 {[%emt 0:01:55] [#] Hoping for Ne6+.} Kg8 {[%emt 0:03:52]} 31. Ne6 {[%emt 0:10:25]} Qe3+ {[%emt 0:00:22]} 32. Qf2 {[%emt 0:00:04]} Qxf2+ {[%emt 0:00:26]} 33. Rxf2 {[%emt 0:00:03]} Ra4 {[%emt 0:03:51]} 34. Nbxc7 {[%emt 0:00:00]} Nxc7 {[%emt 0:00:00]} 35. Nxc7 {[%emt 0:00:00] aiming for Nb5.} Rxb4 {[%emt 0:00:00][%mdl 4096] Endgame KRN-KRN} 36. Ne8 {[%emt 0:00:00]} Rxc4 {[%emt 0:00:00]} ({Don't take} 36... Rb1+ 37. Kg2 $16) 37. Nxd6 {[%emt 0:00:00]} Rd4 {[%emt 0:00:00]} 38. Ra2 {[%emt 0:00:00] [#] Threatens to win with Ra8+.} Nc5 {[%emt 0:00:00]} 39. Ra8+ {[%emt 0:00:00]} Kg7 {[%emt 0:00:00]} 40. Ra7+ {[%emt 0:00:00]} Kg8 {[%emt 0:00:00]} 41. Ra8+ {[%emt 0:02:40]} Kg7 {[%emt 0:00:00]} 42. Ra7+ {[%emt 0:00:55]} Kg8 {[%emt 0:00:00]} 43. Ra8+ {[%emt 0:02:28] Weighted Error Value: White=0.06 (flawless) /Black=0.04 (flawless)} 1/2-1/2